fUSD/lending_fUSD_20260329
["ID","MTS","AMOUNT","RATE_DAILY","PERIOD"]
[419050287,1774812449003,-3000.01,9.9e-05,3]
[419050288,1774812449140,-3999.99,9.9e-05,3]
[419050289,1774812450052,-6878.21739822,9.91e-05,2]
[419050290,1774812450473,-10000.01,9.91e-05,2]
[419050291,1774812450604,-10000.01,9.91e-05,2]
[419050292,1774812450675,-10000.01,9.91e-05,2]
[419050293,1774812450779,-10000.01,9.91e-05,2]
[419050294,1774812450914,-10000.01,9.91e-05,2]
[419050295,1774812454566,-10000.01,9.91e-05,2]
[419050296,1774812454596,-10000.01,9.91e-05,2]
[419050297,1774812454618,-10000.01,9.91e-05,2]
[419050298,1774812454641,-10000.01,9.91e-05,2]
[419050299,1774812459536,-1041.84886251,9.886e-05,2]
[419050300,1774812459573,-7916.31227498,9.91e-05,2]
[419050301,1774812459629,-10000.01,9.91e-05,2]
[419050302,1774812459747,-10000.01,9.91e-05,2]
[419050303,1774812466204,-10000.01,9.91e-05,2]
[419050304,1774812466218,-10000.01,9.91e-05,2]
[419050305,1774812466232,-10000.01,9.91e-05,2]
[419050306,1774812468717,-10000.01,9.91e-05,2]
[419050307,1774812468879,-10000.01,9.91e-05,2]
[419050308,1774812468984,-10000.01,9.91e-05,2]
[419050309,1774812471642,-10000.01,9.91e-05,2]
[419050310,1774812471753,-10000.01,9.91e-05,2]
[419050311,1774812471861,-10000.01,9.91e-05,2]
[419050312,1774812474668,-10000.01,9.91e-05,2]
[419050313,1774812474776,-10000.01,9.91e-05,2]
[419050314,1774812474892,-10000.01,9.91e-05,2]
[419050315,1774812480717,-3997.10314283,9.81e-05,2]
[419050316,1774812480742,-2005.80371434,9.81e-05,2]
[419050317,1774812481821,150.0,0.00011233,120]
[419050318,1774812481949,2300.0,7.248e-05,2]
[419050319,1774812482451,2200.0,7.438e-05,2]
[419050320,1774812482960,500.01,7.625e-05,2]
[419050321,1774812482984,299.99,7.625e-05,2]
[419050322,1774812483475,987.18,7.887e-05,2]
[419050323,1774812483983,2600.0,7.988e-05,2]
[419050324,1774812484525,1112.84,8.276e-05,2]
[419050325,1774812484549,455.88,8.276e-05,2]
[419050326,1774812485033,1071.65,8.4e-05,2]
[419050327,1774812486296,250.0,8.676e-05,2]
[419050328,1774812487525,-3206.82709092,9.886e-05,2]
[419050329,1774812487550,-3586.35581816,9.886e-05,2]
[419050330,1774812489795,-4309.13253679,9.886e-05,2]
[419050331,1774812489823,-370.62839673,9.893e-05,2]
[419050332,1774812489852,-300.0,9.909e-05,2]
[419050333,1774812489915,-40.48813296,9.91e-05,2]
[419050334,1774812490604,1768.7,8.627e-05,2]
[419050335,1774812492919,-10000.01,9.91e-05,2]
[419050336,1774812493096,-10000.01,9.91e-05,2]
[419050337,1774812493193,-10000.01,9.91e-05,2]
[419050338,1774812495811,-10000.01,9.91e-05,2]
[419050339,1774812498869,-10000.01,9.91e-05,2]
[419050340,1774812498994,-10000.01,9.91e-05,2]
[419050341,1774812499124,-10000.01,9.91e-05,2]
[419050342,1774812548275,3175.876001,7.945e-05,2]
[419050343,1774812556055,1490.0,8.585e-05,2]
[419050344,1774812556595,334.133999,8.904e-05,2]
[419050345,1774812556618,855.866001,8.904e-05,2]
[419050346,1774812557101,2800.0,9.039e-05,2]
[419050347,1774812557621,2650.0,9.429e-05,2]
[419050348,1774812572005,-2020.01,9.498e-05,2]
[419050349,1774812572192,-959.99,9.498e-05,2]
[419050350,1774812608143,155.0,9.498e-05,3]
[419050351,1774812621649,173.65,8.572e-05,2]
[419050355,1774812632139,-584.84684353,9.755e-05,2]
[419050356,1774812632151,-1915.15315647,9.755e-05,2]
[419050357,1774812632161,-257.0,9.755e-05,2]
[419050358,1774812632170,-958.15113749,9.81e-05,2]
[419050359,1774812632180,-300.0,9.892e-05,2]
[419050360,1774812632189,-1200.0,9.892e-05,2]
[419050361,1774812632199,-300.0,9.892e-05,2]
[419050362,1774812632208,-500.0,9.893e-05,2]
[419050363,1774812632218,-500.0,9.893e-05,2]
[419050364,1774812632228,-500.0,9.893e-05,2]
[419050365,1774812632237,-500.0,9.893e-05,2]
[419050366,1774812632247,-500.0,9.893e-05,2]
[419050367,1774812632256,-500.0,9.893e-05,2]
[419050368,1774812632265,-500.0,9.893e-05,2]
[419050369,1774812632274,-500.0,9.893e-05,2]
[419050370,1774812632283,-500.0,9.893e-05,2]
[419050371,1774812632292,-500.0,9.893e-05,2]
[419050372,1774812632301,-500.0,9.893e-05,2]
[419050373,1774812632310,-500.0,9.893e-05,2]
[419050374,1774812632319,-151.0,9.907e-05,2]
[419050375,1774812632330,-576.0,9.909e-05,2]
[419050376,1774812632339,-150.0,9.909e-05,2]
[419050377,1774812632348,-1000.55187123,9.909e-05,2]
[419050378,1774812632357,-500.0,9.909e-05,2]
[419050379,1774812632366,-500.0,9.909e-05,2]
[419050380,1774812632376,-246.35697773,9.909e-05,2]
[419050381,1774812632385,-500.0,9.909e-05,2]
[419050382,1774812632395,-500.0,9.909e-05,2]
[419050383,1774812632404,-500.0,9.909e-05,2]
[419050384,1774812632414,-500.0,9.909e-05,2]
[419050385,1774812632423,-531.64931272,9.909e-05,2]
[419050386,1774812632432,-531.64931272,9.909e-05,2]
[419050388,1774812632442,-531.64931272,9.909e-05,2]
[419050389,1774812632451,-531.64931272,9.909e-05,2]
[419050390,1774812632461,-531.64931272,9.909e-05,2]
[419050391,1774812632471,-531.64931272,9.909e-05,2]
[419050392,1774812632480,-531.64931272,9.909e-05,2]
[419050393,1774812632490,-531.64931272,9.909e-05,2]
[419050395,1774812632499,-531.64931272,9.909e-05,2]
[419050397,1774812632508,-531.64931272,9.909e-05,2]
[419050399,1774812632518,-531.64931272,9.909e-05,2]
[419050400,1774812632531,-531.64931272,9.909e-05,2]
[419050401,1774812632541,-531.64931272,9.909e-05,2]
[419050402,1774812632550,-531.64931272,9.909e-05,2]
[419050403,1774812632559,-531.64931272,9.909e-05,2]
[419050404,1774812632569,-531.64931272,9.909e-05,2]
[419050405,1774812632578,-531.64931272,9.909e-05,2]
[419050407,1774812632587,-531.64931272,9.909e-05,2]
[419050409,1774812632596,-531.64931272,9.909e-05,2]
[419050411,1774812632605,-531.64931272,9.909e-05,2]
[419050413,1774812632614,-531.64931272,9.909e-05,2]
[419050415,1774812632623,-531.64931272,9.909e-05,2]
[419050417,1774812632633,-531.64931272,9.909e-05,2]
[419050419,1774812632643,-531.64931272,9.909e-05,2]
[419050421,1774812632652,-531.64931272,9.909e-05,2]
[419050423,1774812632662,-531.64931272,9.909e-05,2]
[419050425,1774812632671,-531.64931272,9.909e-05,2]
[419050426,1774812632681,-531.64931272,9.909e-05,2]
[419050427,1774812632690,-531.64931272,9.909e-05,2]
[419050428,1774812632699,-531.64931272,9.909e-05,2]
[419050429,1774812632709,-531.64931272,9.909e-05,2]
[419050430,1774812632718,-531.64931272,9.909e-05,2]
[419050431,1774812632727,-531.64931272,9.909e-05,2]
[419050432,1774812632736,-531.64931272,9.909e-05,2]
[419050433,1774812632746,-531.64931272,9.909e-05,2]
[419050434,1774812632755,-531.64931272,9.909e-05,2]
[419050435,1774812632765,-531.64931272,9.909e-05,2]
[419050436,1774812632774,-531.64931272,9.909e-05,2]
[419050437,1774812632784,-531.64931272,9.909e-05,2]
[419050438,1774812632793,-531.64931272,9.909e-05,2]
[419050439,1774812632802,-531.64931272,9.909e-05,2]
[419050440,1774812632812,-531.64931272,9.909e-05,2]
[419050441,1774812632822,-531.64931272,9.909e-05,2]
[419050442,1774812632831,-531.64931272,9.909e-05,2]
[419050443,1774812632841,-531.64931272,9.909e-05,2]
[419050444,1774812632850,-531.64931272,9.909e-05,2]
[419050445,1774812632861,-531.64931272,9.909e-05,2]
[419050446,1774812632871,-531.64931272,9.909e-05,2]
[419050447,1774812632880,-531.64931272,9.909e-05,2]
[419050448,1774812632890,-531.64931272,9.909e-05,2]
[419050449,1774812632900,-531.64931272,9.909e-05,2]
[419050450,1774812632909,-531.64931272,9.909e-05,2]
[419050451,1774812632918,-531.64931272,9.909e-05,2]
[419050452,1774812632928,-531.64931272,9.909e-05,2]
[419050453,1774812632937,-531.64931272,9.909e-05,2]
[419050454,1774812632946,-531.64931272,9.909e-05,2]
[419050455,1774812632955,-531.64931272,9.909e-05,2]
[419050456,1774812632964,-531.64931272,9.909e-05,2]
[419050457,1774812632974,-531.64931272,9.909e-05,2]
[419050458,1774812632983,-531.64931272,9.909e-05,2]
[419050459,1774812632992,-531.64931272,9.909e-05,2]
[419050460,1774812633002,-509.32633416,9.909e-05,2]
[419050461,1774812633011,-272.90315552,9.909e-05,2]
[419050462,1774812633020,-183.25419758,9.909e-05,2]
[419050463,1774812633030,-527.98276573,9.909e-05,2]
[419050464,1774812633040,-527.98276573,9.909e-05,2]
[419050465,1774812633049,-527.98276573,9.909e-05,2]
[419050466,1774812633058,-527.98276573,9.909e-05,2]
[419050467,1774812633068,-527.98276573,9.909e-05,2]
[419050468,1774812633077,-527.98276573,9.909e-05,2]
[419050469,1774812633086,-527.98276573,9.909e-05,2]
[419050470,1774812633096,-527.98276573,9.909e-05,2]
[419050471,1774812633106,-527.98276573,9.909e-05,2]
[419050472,1774812633116,-527.98276573,9.909e-05,2]
[419050473,1774812633125,-527.98276573,9.909e-05,2]
[419050474,1774812633135,-527.98276573,9.909e-05,2]
[419050475,1774812633144,-527.98276573,9.909e-05,2]
[419050476,1774812633153,-527.98276573,9.909e-05,2]
[419050477,1774812633163,-527.98276573,9.909e-05,2]
[419050478,1774812633173,-527.98276573,9.909e-05,2]
[419050479,1774812633182,-527.98276573,9.909e-05,2]
[419050480,1774812633192,-527.98276573,9.909e-05,2]
[419050481,1774812633202,-527.98276573,9.909e-05,2]
[419050482,1774812633211,-527.98276573,9.909e-05,2]
[419050483,1774812633221,-527.98276573,9.909e-05,2]
[419050484,1774812633230,-407500.17288806,9.91e-05,2]
[419050485,1774812633244,-69020.71769324,9.91e-05,2]
[419050486,1774812633255,-35887.59544746,9.91e-05,2]
[419050487,1774812633296,-376.36,9.909e-05,2]
[419050488,1774812638221,-151.62276573,9.909e-05,2]
[419050489,1774812638230,-218.32076503,9.909e-05,2]
[419050490,1774812638243,-309.6620007,9.909e-05,2]
[419050491,1774812638253,-527.98276573,9.909e-05,2]
[419050492,1774812638263,-312.59916673,9.909e-05,2]
[419050493,1774812638391,-215.383599,9.909e-05,2]
[419050494,1774812638400,-166.17911205,9.909e-05,2]
[419050495,1774812638510,-361.80365368,9.909e-05,2]
[419050496,1774812638521,-527.98276573,9.909e-05,2]
[419050497,1774812638531,-397.31358059,9.909e-05,2]
[419050498,1774812638544,-130.66918514,9.909e-05,2]
[419050499,1774812638554,-527.98276573,9.909e-05,2]
[419050500,1774812638564,-1672756.19616508,9.91e-05,2]
[419050502,1774812638573,-153.27466148,9.915e-05,2]
[419050504,1774812638583,-3371.2349,9.915e-05,2]
[419050506,1774812638592,-1002.20748493,9.915e-05,2]
[419050507,1774812638602,-1000.55187123,9.915e-05,2]
[419050509,1774812638612,-853.34751357,9.916e-05,2]
[419050512,1774812638631,-2500.0,9.916e-05,2]
[419050515,1774812638642,-4009.8934,9.916e-05,2]
[419050517,1774812638652,-150.99,9.916e-05,2]
[419050519,1774812638662,-9999.99,9.916e-05,2]
[419050520,1774812638672,-5081.68,9.916e-05,2]
[419050522,1774812638681,-2115.96,9.916e-05,2]
[419050524,1774812638691,-8618.44,9.916e-05,2]
[419050526,1774812638701,-19999.99,9.916e-05,2]
[419050528,1774812638711,-299.99,9.946e-05,2]
[419050531,1774812638721,-9999.99,9.946e-05,2]
[419050533,1774812638731,-4999.99,9.946e-05,2]
[419050535,1774812638741,-499.99,9.946e-05,2]
[419050537,1774812638751,-2267.62,9.946e-05,2]
[419050539,1774812638760,-8455.71,9.946e-05,2]
[419050541,1774812638771,-1619.68,9.946e-05,2]
[419050543,1774812638781,-9999.99,9.946e-05,2]
[419050545,1774812638791,-999.99,9.946e-05,2]
[419050547,1774812638801,-9999.99,9.946e-05,2]
[419050548,1774812638810,-7603.56,9.946e-05,2]
[419050549,1774812638820,-150.99,9.946e-05,2]
[419050550,1774812638830,-1901.65,9.946e-05,2]
[419050551,1774812638840,-172.0,9.983e-05,2]
[419050552,1774812638850,-420.0,9.987e-05,2]
[419050553,1774812638860,-2500.0,9.999e-05,2]
[419050554,1774812638870,-500.0,9.999e-05,2]
[419050555,1774812638880,-150.0,0.0001,2]
[419050556,1774812638891,-77319.49079821,0.0001,2]
[419050557,1774812638901,-9300.0,0.0001,3]
[419050558,1774812638911,-190.76084893,0.0001,2]
[419050559,1774812638920,-420.13383663,0.0001,2]
[419050561,1774812638929,-233.0,0.00010003,2]
[419050562,1774812638939,-215.0,0.00010007,2]
[419050564,1774812638949,-5828.951,0.0001001,2]
[419050566,1774812638958,-373.249,0.0001001,2]
[419050568,1774812638967,-852.18,0.0001001,2]
[419050570,1774812638977,-500.0,0.0001001,2]
[419050572,1774812638987,-500.0,0.0001001,2]
[419050573,1774812638997,-500.0,0.0001001,2]
[419050575,1774812639006,-500.0,0.0001001,2]
[419050577,1774812639016,-500.0,0.0001001,2]
[419050579,1774812639025,-500.0,0.0001001,2]
[419050581,1774812639035,-200.0,0.0001001,2]
[419050583,1774812639045,-500.0,0.0001001,2]
[419050585,1774812639054,-500.0,0.0001001,2]
[419050587,1774812639064,-500.0,0.0001001,2]
[419050589,1774812639074,-500.0,0.0001001,2]
[419050591,1774812639083,-500.0,0.0001001,2]
[419050593,1774812639092,-151.0,0.0001001,2]
[419050596,1774812639103,-151.0,0.0001001,2]
[419050598,1774812639112,-151.0,0.0001001,2]
[419050599,1774812639122,-151.0,0.0001001,2]
[419050602,1774812639137,-151.0,0.0001001,2]
[419050604,1774812639147,-151.0,0.0001001,2]
[419050606,1774812639157,-151.0,0.0001001,2]
[419050608,1774812639167,-151.0,0.0001001,2]
[419050610,1774812639177,-151.0,0.0001001,2]
[419050612,1774812639187,-151.0,0.0001001,2]
[419050614,1774812639197,-151.0,0.0001001,2]
[419050616,1774812639207,-500.0,0.0001001,2]
[419050618,1774812639217,-151.0,0.0001001,2]
[419050620,1774812639226,-151.0,0.0001001,2]
[419050622,1774812639236,-500.0,0.0001001,2]
[419050624,1774812639246,-151.0,0.0001001,2]
[419050627,1774812639256,-151.0,0.0001001,2]
[419050628,1774812639265,-500.0,0.0001001,2]
[419050631,1774812639276,-151.0,0.0001001,2]
[419050633,1774812639286,-500.0,0.0001001,2]
[419050635,1774812639295,-151.0,0.0001001,2]
[419050637,1774812639305,-500.0,0.0001001,2]
[419050639,1774812639315,-151.0,0.0001001,2]
[419050641,1774812639324,-500.0,0.0001001,2]
[419050643,1774812639335,-151.0,0.0001001,2]
[419050645,1774812639345,-500.0,0.0001001,2]
[419050704,1774812639940,-151.0,0.0001001,2]
[419050706,1774812639959,-500.0,0.0001001,2]
[419050709,1774812639970,-151.0,0.0001001,2]
[419050710,1774812639979,-500.0,0.0001001,2]
[419050712,1774812639989,-151.0,0.0001001,2]
[419050714,1774812639999,-500.0,0.0001001,2]
[419050716,1774812640009,-151.0,0.0001001,2]
[419050718,1774812640018,-500.0,0.0001001,2]
[419050721,1774812640028,-151.0,0.0001001,2]
[419050722,1774812640038,-151.0,0.0001001,2]
[419050724,1774812640048,-151.0,0.0001001,2]
[419050726,1774812640057,-151.0,0.0001001,2]
[419050728,1774812640066,-151.0,0.0001001,2]
[419050730,1774812640076,-151.0,0.0001001,2]
[419050732,1774812640086,-151.0,0.0001001,2]
[419050734,1774812640095,-1386.78395259,0.0001001,2]
[419050736,1774812640105,-151.0,0.0001001,2]
[419050738,1774812640115,-151.0,0.0001001,2]
[419050740,1774812640125,-264.31611832,0.0001001,2]
[419050742,1774812640135,-150.0,0.00010015,2]
[419050744,1774812640145,-325.0,0.00010023,2]
[419050746,1774812640155,-216.0,0.00010043,2]
[419050748,1774812640165,-1503.0,0.00010059,2]
[419050751,1774812640174,-470.0,0.00010063,2]
[419050753,1774812640184,-1611.0,0.00010066,2]
[419050755,1774812640194,-500.0,0.00010073,2]
[419050757,1774812640204,-167.63692162,0.00010073,2]
[419050759,1774812640214,-500.0,0.00010073,2]
[419050761,1774812640224,-171.50157608,0.00010073,2]
[419050763,1774812640233,-500.0,0.00010073,2]
[419050765,1774812640243,-500.0,0.00010073,2]
[419050767,1774812640252,-500.0,0.00010073,2]
[419050769,1774812640262,-500.0,0.00010073,2]
[419050771,1774812640271,-500.0,0.00010073,2]
[419050773,1774812640281,-1404.0,0.00010079,2]
[419050775,1774812640290,-899.0,0.00010086,2]
[419050777,1774812640300,-345.0,0.00010089,2]
[419050779,1774812640309,-235.77,0.00010098,2]
[419050781,1774812640318,-293.0,0.00010099,2]
[419050783,1774812640328,-1933.0,0.00010106,2]
[419050785,1774812640337,-250.0,0.00010109,2]
[419050787,1774812640346,-1000.0,0.00010116,2]
[419050789,1774812640356,-1128.0,0.00010119,2]
[419050790,1774812640365,-1736.0,0.00010126,2]
[419050792,1774812640375,-1630.0,0.00010139,2]
[419050794,1774812640384,-1989.0,0.00010146,2]
[419050796,1774812640394,-3630.9,0.00010151,2]
[419050798,1774812640404,-227.58,0.00010152,2]
[419050800,1774812640414,-1321.0,0.00010159,2]
[419050802,1774812640423,-1814.0,0.00010167,2]
[419050804,1774812640433,-817.0,0.0001018,2]
[419050806,1774812640443,-1077.0,0.00010187,2]
[419050808,1774812640452,-993.0,0.00010207,2]
[419050810,1774812640462,-1255.56,0.00010261,2]
[419050812,1774812640471,-500.0,0.00010273,2]
[419050814,1774812640480,-476.79,0.00010275,2]
[419050816,1774812640491,-852.18,0.00010284,2]
[419050818,1774812640501,-2000.0,0.00010287,2]
[419050820,1774812640511,-1092.36520232,0.00010441,2]
[419050822,1774812640520,-500.0,0.00010441,2]
[419050824,1774812640529,-1000.0,0.00010441,2]
[419050826,1774812640539,-1000.0,0.00010441,2]
[419050828,1774812640549,-1000.0,0.00010441,2]
[419050830,1774812640559,-1000.0,0.00010441,2]
[419050832,1774812640568,-1000.0,0.00010441,2]
[419050834,1774812640577,-1045.4146401,0.00010441,2]
[419050836,1774812640587,-1000.0,0.00010441,2]
[419050838,1774812640597,-1000.0,0.00010441,2]
[419050840,1774812640607,-1000.0,0.00010441,2]
[419050842,1774812640616,-189.38,0.00010492,2]
[419050844,1774812640626,-500.0,0.00010547,2]
[419050846,1774812640635,-600.0,0.00010549,2]
[419050849,1774812640655,-3630.9,0.00010557,2]
[419050851,1774812640666,-852.18,0.00010558,2]
[419050853,1774812640675,-200.0,0.00010558,2]
[419050855,1774812640685,-1438.09495884,0.00010558,2]
[419050857,1774812640695,-766.7,0.00010579,2]
[419050859,1774812640705,-235.77,0.00010603,2]
[419050861,1774812640715,-1000.0,0.00010621,2]
[419050863,1774812640724,-1000.0,0.00010621,2]
[419050865,1774812640734,-1000.0,0.00010621,2]
[419050867,1774812640744,-1000.0,0.00010621,2]
[419050869,1774812640754,-502.67280258,0.00010621,2]
[419050870,1774812640764,-1000.0,0.00010621,2]
[419050872,1774812640774,-5000.0,0.00010714,2]
[419050873,1774812640784,-250.0,0.00010791,2]
[419050875,1774812640793,-500.0,0.00010821,2]
[419050877,1774812640803,-852.18,0.00010832,2]
[419050879,1774812640813,-227.58,0.00010878,2]
[419050880,1774812640822,-1680.0,0.00010881,2]
[419050883,1774812640833,-420.0,0.00010881,2]
[419050884,1774812640842,-255.0,0.000109,2]
[419050885,1774812640852,-853.34751353,0.00010913,2]
[419050886,1774812640862,-500.0,0.00010959,2]
[419050887,1774812640871,-156.86,0.00010959,2]
[419050888,1774812640881,-150.0,0.00010959,2]
[419050889,1774812640890,-166.66,0.00010959,2]
[419050890,1774812640899,-3630.9,0.00010963,2]
[419050891,1774812640909,-700.06015101,0.00010988,2]
[419050892,1774812640919,-1500.0,0.00010988,2]
[419050893,1774812640927,-500.0,0.00010988,2]
[419050894,1774812640937,-1500.0,0.00010988,2]
[419050895,1774812640946,-1500.0,0.00010988,2]
[419050896,1774812640956,-1500.0,0.00010988,2]
[419050897,1774812640965,-1000.0,0.00010988,2]
[419050898,1774812640975,-1001.58195524,0.00010988,2]
[419050899,1774812640984,-3282.16832312,0.00011,2]
[419050900,1774812640994,-2289.918437,0.00011016,2]
[419050901,1774812641003,-4442.628492,0.00011064,2]
[419050902,1774812641013,-413.857368,0.00011064,2]
[419050903,1774812641023,-2203.322754,0.00011064,2]
[419050904,1774812641032,-166.66,0.00011068,2]
[419050905,1774812641041,-500.0,0.00011095,2]
[419050906,1774812641051,-27861.86786911,0.00011099,2]
[419050907,1774812641061,-27861.86786911,0.00011099,2]
[419050908,1774812641070,-28415.21983674,0.00011099,2]
[419050909,1774812641080,-28415.21983665,0.00011099,2]
[419050910,1774812641089,-852.18,0.00011106,2]
[419050911,1774812641099,-200.0,0.00011106,2]
[419050912,1774812641110,-1491.30447232,0.00011106,2]
[419050913,1774812641119,-235.77,0.00011108,2]
[419050914,1774812641129,-500.0,0.00011168,2]
[419050915,1774812641139,-1003.28384066,0.00011168,2]
[419050916,1774812641149,-1500.0,0.00011168,2]
[419050917,1774812641159,-197.01734564,0.00011168,2]
[419050918,1774812641169,-166.66,0.00011178,2]
[419050919,1774812641179,-150.0,0.00011233,2]
[419050920,1774812641188,-28415.21983665,0.00011241,2]
[419050921,1774812641198,-166.66,0.00011288,2]
[419050922,1774812641208,-27861.86786911,0.0001129,2]
[419050923,1774812641218,-3630.9,0.00011369,2]
[419050924,1774812641227,-852.18,0.0001138,2]
[419050925,1774812641236,-166.66,0.00011397,2]
[419050926,1774812641246,-196.8892,0.000114,2]
[419050927,1774812641256,-2000.0,0.0001143,2]
[419050928,1774812641265,-162.610768,0.00011433,2]
[419050929,1774812641275,-400.181212,0.00011482,2]
[419050930,1774812641285,-166.66,0.00011507,2]
[419050931,1774812641295,-2000.0,0.00011536,2]
[419050932,1774812641305,-1000.0,0.00011536,2]
[419050933,1774812641314,-2000.0,0.00011536,2]
[419050934,1774812641324,-2000.0,0.00011536,2]
[419050935,1774812641334,-5364.180547,0.00011564,2]
[419050936,1774812641344,-238.548975,0.00011564,2]
[419050937,1774812641354,-235.77,0.00011613,2]
[419050938,1774812641364,-852.18,0.00011654,2]
[419050939,1774812641373,-200.0,0.00011654,2]
[419050940,1774812641383,-1546.48273779,0.00011654,2]
[419050941,1774812641394,-5534.0,0.000117,3]
[419050942,1774812641403,-2000.0,0.00011716,2]
[419050943,1774812641413,-3630.9,0.00011775,2]
[419050944,1774812641423,-28415.21983665,0.00011907,2]
[419050945,1774812641433,-853.34751353,0.00011911,2]
[419050946,1774812641444,-852.18,0.00011928,2]
[419050947,1774812641453,-27861.86786911,0.00011949,2]
[419050948,1774812641464,-2351.0,0.00011969,2]
[419050949,1774812641474,-578.0,0.00011969,2]
[419050950,1774812641489,-433.0,0.0001199,2]
[419050951,1774812641499,-200.0,0.00012,2]
[419050952,1774812641510,-5534.0,0.00012,5]
[419050953,1774812641519,-2500.0,0.00012084,2]
[419050954,1774812641530,-2500.0,0.00012084,2]
[419050955,1774812641539,-2501.46003451,0.00012084,2]
[419050956,1774812641550,-235.77,0.00012118,2]
[419050957,1774812641560,-3630.9,0.00012182,2]
[419050958,1774812641570,-2750.6,0.00012182,2]
[419050959,1774812641581,-2750.6,0.00012182,2]
[419050960,1774812641591,-2750.6,0.00012182,2]
[419050961,1774812641601,-2750.6,0.00012182,2]
[419050962,1774812641611,-2750.6,0.00012182,2]
[419050963,1774812641622,-2750.6,0.00012182,2]
[419050964,1774812641633,-2750.6,0.00012182,2]
[419050965,1774812641644,-2750.6,0.00012182,2]
[419050966,1774812641654,-2750.6,0.00012182,2]
[419050967,1774812641664,-200.0,0.00012202,2]
[419050968,1774812641675,-1603.70259909,0.00012202,2]
[419050969,1774812641685,-1009.58099597,0.00012264,2]
[419050970,1774812641696,-500.0,0.00012548,2]
[419050971,1774812641707,-28415.21983665,0.00012572,2]
[419050972,1774812641717,-2000.0,0.00012573,2]
[419050973,1774812641728,-3630.9,0.00012588,2]
[419050974,1774812641738,-27861.86786911,0.00012607,2]
[419050975,1774812641748,-189.38,0.00012618,2]
[419050976,1774812641758,-235.77,0.00012623,2]
[419050977,1774812641769,-1200.7886617,0.00012632,2]
[419050978,1774812641779,-3000.0,0.00012632,2]
[419050979,1774812641789,-151.0,0.00012749,2]
[419050980,1774812641799,-200.0,0.0001275,2]
[419050981,1774812641809,-1663.03959526,0.0001275,2]
[419050982,1774812641819,-258.4357,0.000128,2]
[419050983,1774812641830,-250.0,0.00012889,2]
[419050984,1774812641840,-600.0,0.00012898,2]
[419050985,1774812641850,-853.34751353,0.00012908,2]
[419050986,1774812641860,-3630.9,0.00012994,2]
[419050987,1774812641870,-235.77,0.00013127,2]
[419050988,1774812641880,-1006.29,0.00013151,2]
[419050989,1774812641890,-3292.0,0.00013166,2]
[419050990,1774812641900,-2949.88014419,0.0001318,2]
[419050991,1774812641910,-736.0,0.00013189,2]
[419050992,1774812641920,-1000.0,0.00013219,2]
[419050993,1774812641930,-28415.21983665,0.00013238,2]
[419050994,1774812641940,-27861.86786911,0.00013266,2]
[419050995,1774812641952,-500.0,0.00013288,2]
[419050996,1774812641962,-200.0,0.00013298,2]
[419050997,1774812641972,-1724.57206028,0.00013298,2]
[419050998,1774812641982,-3630.9,0.000134,2]
[419050999,1774812641992,-1000.0,0.00013457,2]
[419051000,1774812642002,-1000.0,0.00013457,2]
[419051001,1774812642013,-5466.0,0.000136,7]
[419051002,1774812642024,-235.77,0.00013632,2]
[419051003,1774812642037,-500.0,0.00013698,2]
[419051004,1774812642049,-500.0,0.00013698,2]
[419051005,1774812642059,-500.0,0.00013698,2]
[419051006,1774812642069,-500.0,0.00013698,2]
[419051007,1774812642079,-173.34235598,0.00013698,2]
[419051008,1774812642089,-662.29,0.00013698,2]
[419051009,1774812642099,-662.29,0.00013698,2]
[419051010,1774812642109,-662.29,0.00013698,2]
[419051011,1774812642120,-662.29,0.00013698,2]
[419051012,1774812642129,-662.29,0.00013698,2]
[419051013,1774812642139,-662.29,0.00013698,2]
[419051014,1774812642149,-662.29,0.00013698,2]
[419051015,1774812642159,-662.29,0.00013698,2]
[419051016,1774812642169,-662.29,0.00013698,2]
[419051017,1774812642179,-662.29,0.00013698,2]